Cogmind - Beta 11.2 @@@ ROGUE MODE // 2023.02.12 @ 17:56:25 // Winter2022/Polymind Player: ArabianSandBoa Result: Destroyed by Y-45 Defender with Heavy Assault Rifle Performance ------------- Evolutions (1) 500 Regions Visited (2) 400 Robots Destroyed (118) 590 Value Destroyed (2217) 2217 Prototype IDs (0) 0 Alien Tech Used (0) 0 Bonus (3578) 3578 TOTAL SCORE: 6855 Bonus ------- Polymind Skill 2826 High Alert Combat Kills 752 Cogmind --------- Core Integrity 0/400 Matter 0/0 Energy 215/215 System Corruption 5% Temperature Cool (26) Movement Core (200) Ox3 Location -9/Materials Parts ------- > --- POWER (1) -------- Reinforced Ion Engine > --- PROPULSION (2) --- (None) > --- UTILITY (1) ------ (None) > --- WEAPON (1) ------- Hammer > --- INVENTORY (1) ---- (None) Peak State ------------ > --- POWER ------------ Light Ion Engine > --- PROPULSION ------- Wheel Wheel > --- UTILITY ---------- Machine Analyzer Recalibrator > --- WEAPON ----------- (None) > --- INVENTORY -------- Backup Power I Backup Power I Backup Propulsion I Backup Propulsion I Backup Propulsion I Backup Propulsion I Backup Laser I Backup Laser I Backup Laser I Backup Laser I [Rating: 11] Favorites ----------- Power Improved Ion Engine Engine Improved Ion Engine Power Core Light Nuclear Core Propulsion Light Treads Treads Light Treads Leg Aluminum Leg Wheel Wheel Flight Unit Flight Unit Utility Heat Sink Device Heat Sink Storage Small Matter Pod Processor Machine Analyzer Protection Light Armor Plating Weapon Beam Rifle Energy Gun Beam Rifle Ballistic Gun Heavy Assault Rifle Impact Weapon Hammer Build | -11 -10 -9 ------- Run | Scr Mat Mat Slots Evolved . | . . . Power . | . . . Propulsion . | . . . Utility . | . . . Weapon . | . . . Parts Attached . | . . . Power . | . . . Engine . | . . . Core . | . . . Reactor . | . . . Propulsion . | . . . Treads . | . . . Leg . | . . . Wheel . | . . . Hover . | . . . Flight . | . . . Utility . | . . . Device . | . . . Storage . | . . . Processor . | . . . Hackware . | . . . Protection . | . . . Artifact . | . . . Weapon . | . . . Energy Gun . | . . . Energy Cannon . | . . . Ballistic Gun . | . . . Ballistic Cannon . | . . . Launcher . | . . . Special Weapon . | . . . Impact Weapon . | . . . Slashing Weapon . | . . . Piercing Weapon . | . . . Special Melee Weapon . | . . . Unidentified Prototypes . | . . . Parts Lost 20 | . 4 16 Power 3 | . 1 2 Propulsion 7 | . 2 5 Utility 5 | . . 5 Weapon 5 | . 1 4 Highest Loss Streak 4 | . 3 4 To Critical Strikes . | . . . Average Slot Usage (%) 96 | . 96 96 Engine 12 | . 22 11 Treads 21 | . . 23 Leg 3 | . 17 2 Device 21 | . 10 22 Protection 9 | . . 10 Energy Gun 12 | . 10 12 Ballistic Gun 10 | . 5 10 Naked Turns 7 | . 2 5 Heaviest Build 18 | . 7 18 Greatest Support 40 | 3 20 40 Greatest Overweight (x) . | . . . Average Overweight (x) . | . . . Largest Inventory Capacity 10 | . 1 10 Average Capacity . | . . 1 Most Carried 10 | . . 10 Average Carried . | . . . Final Capacity 1 | 1 . 1 Final Carried . | . . . Class Distribution -------------------- 84% | Sentry 10% | Grunt Dominant Class ---------------- Grunt | -10/Materials Sentry | -9/Materials Resources | -11 -10 -9 ----------- Run | Scr Mat Mat Matter Collected 614 | . 36 578 Remotely . | . . . Salvage Created 3859 | . 505 3354 Parts 260 | . 29 231 Haulers Intercepted 2 | . . 2 Recyclers Shooed 3 | . . 3 Parts Field Recycled . | . . . Retrieved Matter . | . . . Parts Self-Destructed . | . . . Prevented . | . . . Kills | -11 -10 -9 ------- Run | Scr Mat Mat Combat Hostiles Destroyed 71 | . 15 56 Melee 5 | . . 5 Guns 62 | . 15 47 Classes Destroyed 14 | . 4 10 Worker 34 | . 1 33 Builder 13 | . . 13 Tunneler 3 | . . 3 Hauler 2 | . . 2 Recycler 7 | . . 7 Mechanic 3 | . . 3 Operator 1 | . . 1 Watcher 3 | . 1 2 Swarmer 18 | . 5 13 Grunt 42 | . 10 32 Brawler 2 | . . 2 Duelist 1 | . . 1 Protector 1 | . . 1 Sentry 7 | . . 7 Best Kill Streak 4 | . 4 4 Combat Bots Only 4 | . 3 4 Max Kills in Single Turn 2 | . 1 2 Gunslinging . | . . . Exploded . | . . . Melee 1 | . . 1 Uniques/NPCs Destroyed . | . . . Combat | -11 -10 -9 -------- Run | Scr Mat Mat Damage Taken 3294 | . 650 2644 Core 661 | . 249 412 Absorbed by Shields . | . . . Core Remaining (%) 50 | 100 . . Volleys Fired 377 | . 88 289 Largest 2 | . 1 2 Hottest 79 | . 40 79 Shots Fired 565 | . 88 477 Gun 565 | . 88 477 Cannon . | . . . Launcher . | . . . Special . | . . . Kinetic 219 | . 28 191 Thermal 346 | . 60 286 Explosive . | . . . Electromagnetic . | . . . Robot Hit Streak 24 | . 10 24 Robot Miss Streak 4 | . 2 4 Penetration Max . | . . . Secondary Targets 7 | . . 7 Max Gunslinging Chain 1 | . . 1 Shots Hit Robots 408 | . 65 343 Core Hits 173 | . 32 141 Critical Kills 1 | . . 1 Critical Parts Destroyed 4 | . 1 3 Critical Strikes 29 | . 1 28 Burn 24 | . . 24 Destroy 1 | . 1 . Smash 4 | . . 4 Melee Attacks 44 | . . 44 Impact 44 | . . 44 Slashing . | . . . Piercing . | . . . Sneak Attacks 1 | . . 1 Combat Hostiles 1 | . . 1 Follow-up Attacks . | . . . Damage Inflicted 6698 | . 721 5977 Guns 5636 | . 721 4915 Cannons . | . . . Explosions . | . . . Melee 1062 | . . 1062 Ramming . | . . . Kinetic 1827 | . 151 1676 Thermal 3809 | . 570 3239 Explosive . | . . . Electromagnetic . | . . . Impact 1062 | . . 1062 Slashing . | . . . Piercing . | . . . Highest Corruption 5 | . . 5 Average Corruption 2 | . . 2 Corruption Purged . | . . . Corruption Blocked . | . . . Effects 60 | . . 60 Message Errors 18 | . . 18 Matter Fused 7 | . . 7 Heat Flow Errors 9 | . . 9 Energy Discharges 9 | . . 9 Data Loss (minor) 5 | . . 5 Data Loss (major) 5 | . . 5 Misfires 2 | . . 2 Alerts 2 | . . 2 Weapon Failures 3 | . . 3 Overload Shots . | . . . Overflow Damage 140 | . . 140 Projectiles . | . . . Explosions . | . . . Melee 140 | . . 140 Knockbacks 3 | . . 3 Impact 2 | . . 2 Kinetic . | . . . Secondary 1 | . . 1 Self-Inflicted Damage . | . . . Shots . | . . . Rammed . | . . . Targets Rammed . | . . . Kicked . | . . . Crushed . | . . . Highest Temperature 198 | . 120 198 Average Temperature 37 | . 30 39 Received Heat Transfer 1608 | . 276 1332 Siege Activations . | . . . Robots Corrupted . | . . . Combat Hostiles . | . . . Parts Fried 3 | . . 3 Impact Corruptions 9 | . . 9 Robots Melted . | . . . Combat Hostiles . | . . . Parts Melted 13 | . 1 12 Heat Transferred 10465 | . 1175 9290 Parts Sabotaged . | . . . Parts Stolen . | . . . Parts Stripped . | . . . Power Chain Reactions . | . . . Missiles Intercepted . | . . . Alert | -11 -10 -9 ------- Run | Scr Mat Mat Peak Influence 1419 | . 521 1419 Initial 162 | . . 162 Average 421 | . 250 436 Maximum Alert Level 4 | . 2 4 Low Security (%) 47 | 100 29 48 Level 1 7 | . 58 3 Level 2 6 | . 11 6 Level 3 35 | . . 38 Level 4 3 | . . 3 Level 5 . | . . . High Security . | . . . Max Security . | . . . Sterilizations 1 | . . 1 Squads Dispatched 20 | . 8 12 Investigation 11 | . 8 3 Extermination . | . . . Reinforcement 2 | . . 2 Assault 7 | . . 7 Garrison . | . . . Intercept . | . . . Searches Triggered . | . . . Construction Impeded 1 | . . 1 Haulers Reinforced . | . . . Active Scanning Responses . | . . . Cargo Convoy Interrupts . | . . . Stealth | -11 -10 -9 --------- Run | Scr Mat Mat Distress Signals 1 | . . 1 Communications Jammed . | . . . Distress Signals . | . . . Times Spotted 118 | . 29 89 Peak Tracking Total 8 | . 5 8 Tactical Retreats 3 | . 1 2 Traps | -11 -10 -9 ------- Run | Scr Mat Mat Traps Triggered 7 | . 2 5 Indirectly . | . . . Trap Hack Attempts . | . . . Triggered . | . . . Disarmed . | . . . Reprogrammed 6 | . 6 . Reused 1 | . 1 . Traps Extracted . | . . . Installed . | . . . Triggered 1 | . 1 . Machines | -11 -10 -9 ---------- Run | Scr Mat Mat Machines Disabled 2 | . . 2 Max in Single Turn 1 | . . 1 Machines Sabotaged . | . . . Garrisons Compromised . | . . . Overloaded Fab Kills . | . . . Hacking | -11 -10 -9 --------- Run | Scr Mat Mat Machines Accessed 13 | . 9 4 Terminals 12 | . 8 4 Fabricators . | . . . Repair Stations . | . . . Recycling Units 1 | . 1 . Scanalyzers . | . . . Garrison Access . | . . . Total Hacks 52 | . 34 18 Successful 24 | . 16 8 Failed 27 | . 18 9 Catastrophic 3 | . . 3 Database Lockouts 1 | . . 1 Manual 56 | . 32 24 Terminals 51 | . 33 18 Fabricators . | . . . Repair Stations . | . . . Recycling Units 1 | . 1 . Scanalyzers . | . . . Garrison Access . | . . . Terminal Hacks 12 | . 7 5 Record 1 | . 1 . Robot Analysis 5 | . 2 3 Branch Access Points 1 | . 1 . Alert Level 1 | . 1 . Unreport Threat 1 | . . 1 Reprogram Traps 2 | . 1 1 Zone Layout 1 | . 1 . Fabricator Hacks . | . . . Repair Station Hacks . | . . . Recycling Unit Hacks . | . . . Scanalyzer . | . . . Garrison Access Hacks . | . . . Unauthorized Hacks 12 | . 9 3 Terminals 11 | . 8 3 Assimilate 2 | . 2 . Botnet 9 | . 6 3 Fabricators . | . . . Repair Stations . | . . . Recycling Units 1 | . 1 . Tunnel 1 | . 1 . Scanalyzers . | . . . Garrison Access . | . . . Data Cores Recovered . | . . . Used . | . . . Hacking Detections 12 | . 8 4 Full Trace Events 11 | . 8 3 Feedback Events . | . . . Feedback Blocked . | . . . Robot Schematics Acquired . | . . . Robots Built . | . . . Authchips . | . . . Time . | . . . Total Robot Build Rating . | . . . Part Schematics Acquired . | . . . Parts Built . | . . . Authchips . | . . . Time . | . . . Total Part Build Rating . | . . . Parts Repaired . | . . . Time . | . . . Parts Recycled . | . . . Recycled Matter . | . . . Retrieved Matter . | . . . Retrieved Components . | . . . Parts Scanalyzed . | . . . Part Schematics Acquired . | . . . Parts Damaged . | . . . Bothacking | -11 -10 -9 ------------ Run | Scr Mat Mat Used RIF Installer . | . . . Robots Hacked 9 | . 2 7 Non-combat 1 | . . 1 Combat 8 | . 2 6 Robot Hacks Applied 9 | . 2 7 find_station 1 | . . 1 find_shortcuts 8 | . 2 6 Relay Couplers Released . | . . . Fabnet Peak Effective % . | . . . Robots Rewired . | . . . Allies Hacked . | . . . Hacks Repelled . | . . . Allies | -11 -10 -9 -------- Run | Scr Mat Mat Total Allies . | . . . Largest Group . | . . . Highest-Rated Group . | . . . Highest-Rated Ally . | . . . Total Orders . | . . . Ally Attacks . | . . . Total Damage . | . . . Kills . | . . . Allies Corrupted . | . . . Allies Melted . | . . . Intel | -11 -10 -9 ------- Run | Scr Mat Mat Robot Analysis Total 8 | 1 2 5 Derelict Logs Recovered . | . . . Drone Launches . | . . . Drone Recoveries . | . . . Exploration | -11 -10 -9 ------------- Run | Scr Mat Mat Turns Passed 12368 | 100 806 11462 Spaces Moved 1496 | 17 647 832 Core 22 | 17 2 3 Treads 604 | . . 604 Legs 274 | . 130 144 Wheels 282 | . 272 10 Hover . | . . . Flight 314 | . 243 71 Fastest Speed 37 | 50 37 37 Average Speed 110 | 50 71 141 Slowest Speed 160 | 50 120 160 Overloaded Moves . | . . . Propulsion Burnouts . | . . . Robots Hopped 3 | . 2 1 Cave-ins Triggered . | . . . Exploration Rate (%) 47 | 4 94 43 Regions Visited 2 Branch Regions . Pre-discovered Areas 1 | . 1 . Known Exits Taken . | . . . Unknown Exits Taken 2 | 1 1 . Scrap Searched . | . . . Spaces Dug . | . . . Terrain Destroyed 21 | . . 21 Melee . | . . . Projectile . | . . . AOE 21 | . . 21 Terrain Rammed . | . . . Walls Destroyed . | . . . Machines Disabled . | . . . Actions | -11 -10 -9 --------- Run | Scr Mat Mat Total 11574 | 108 903 10563 Wait 9661 | 91 171 9399 Move 1489 | 17 642 830 Hop 3 | . 2 1 Pick Up . | . . . Fast Attach . | . . . Attach . | . . . Detach . | . . . Swap . | . . . Drop . | . . . Fire 377 | . 88 289 Melee 44 | . . 44 Ram . | . . . Kick . | . . . Crush . | . . . Escape Stasis . | . . . Rewire . | . . . Trap . | . . . Miscellaneous . | . . . Route ------- -11/Scrapyard -10/Materials (discovered 4 exits: *Mat x3 / *Min) -9/Materials (discovered 2 exits: [*Mat] / [*Min]) History --------- Turn | Location | Event 3 | -11/Scrapyard | Discovered new exit (range 15) 101 | -11/Scrapyard | Entered Materials 296 | -10/Materials | Discovered new exit (range 14) 327 | -10/Materials | Discovered new exit (range 13) 415 | -10/Materials | Identified exit to Mines 522 | -10/Materials | Core integrity fell below 50% 726 | -10/Materials | Core integrity fell below 20% 776 | -10/Materials | Lost 3 parts (1p1n1w) 836 | -10/Materials | Discovered new exit (range 15) 907 | -10/Materials | Entered another Materials area 7414 | -9/Materials | Discovered new exit (range 16) 7707 | -9/Materials | First assault squad dispatched 8577 | -9/Materials | Discovered new exit (range 12) 8792 | -9/Materials | Central database locked down 11451 | -9/Materials | Lost 4 parts (1p1n1u1w) 11861 | -9/Materials | Core integrity fell below 50% 12207 | -9/Materials | Sterilization system engaged 12207 | -9/Materials | Non-combat units ordered to evacuate 12293 | -9/Materials | Core integrity fell below 20% 12307 | -9/Materials | Combat units ordered to evacuate 12369 | -9/Materials | Destroyed by Y-45 Defender with Heavy Assault Rifle Last Messages --------------- 12307_ ALERT: All combat units evacuate. 12309_ System corrupted: IFF burst signal emitted. 12312_ ALERT: Machine network offline. 12314_ G-47 Trooper knocked back. 12317_ ALERT: Performing unscheduled system reset. 12317_ Destroyed Heat Sink. 12317_ G-34 Mercenary system corrupted by crushing effect. 12318_ G-34 Mercenary IFF system glitched. 12320_ G-34 Mercenary suffers critical hit (Smash). 12320_ G-34 Mercenary destroyed. 12328_ Destroyed Heat Sink. 12328_ G-34 Mercenary system corrupted by crushing effect. 12329_ G-34 Mercenary system terminally corrupted. 12329_ Aluminum Leg fried. 12334_ G-34 Mercenary knocked back. 12339_ M-13 Machinist repairs Sml. Laser. 12351_ Lgt. Armor Plating destroyed. 12363_ Lgt. Treads destroyed. 12366_ Critical hit (Burn: +37). 12366_ Lgt. Treads destroyed. Map ----- +----------------------------------------------------+ | ???????????????????????????????????# ]%""### | | ???????????????????????????????????# !! *=""# | | ???????????????????????????????????# !! =%%==#!% | | ???????????????????????????????????#########+### * | | ??????????????????????????################% % !* | | ??????????????????????????# %%%%%==%%=!%%%= %%= | | ??????????????????????????# < ############! %%= | | ??????????????????????????# #??????????######% = | | ??????????????????????????# #???????#######?#%%% | | ??????????????????????????# #???????# # ! | | ??????????????????????????# #???????# #% = | | ??????????????????????????# #???????# +|=% | | ??????????????????????????# #??????##########=*= | | ??????????????????????????# #??????? ##*=% | | ??????????????????????????# #????? """ #!!!! | | ??????????????????????????# #????# """""[#*%== | | ??????????????????????????# #????# """""%+=%! | | ??????????????????????????# #????# """""%#! | | ??????????????????????????# ^#????# """ [#! | | ?????????????????########## #????# ##### | | ?????????????????# # #????#* #???? | | ?????????????????#""" # #????###########???? | | ?????????????????#""" # g ###########????????? | | ?????????????????#""" =#g= # T #????????? | | ?????????????????# *Ym% # ##???????? | | ?????????????????#""" b# # """ #??????+? | | ?????????????????#""" # # """ !!!##???????? | | ?????????????????#""" # #*""" !!!#????????? | | ?????????????????# !# % #!!! !! #?####+### | | ?????????????????########## %+== ! ###%=% # | | ??????????????????????????# %#== +!+!=!= !# | | ??????????????????######### %#############=!= [%" | | ??????????? #???????????#=!* # | | ??????????? % #???????????#[ # | | ??????????? #???????????# # | | ???????????? ######### #???????????######## | | ???????????? ???????????# +??????????????????? | | ??????????????????????????# #??????????????????? | | ??????????????????????????# #??????????????????? | | ??????????????????????????# #??????????????????? | | ??????????????????????????# #??????????????????? | | ??????????????????????????# #??????????????????? | | ??????????????????????????# #?????????????###### | | ??????????????????????????+ #??????? + | | ??????????????????????????# #?????????????##+### | | ??????????????????????????? +??????????????????? | | ??????????????????????????? #??????????????????? | | ?????????????????????????????????????????????????? | | ?????????????????????????????????????????????????? | | ?????????????????????????????????????????????????? | +----------------------------------------------------+ Best States ------------- Heat Dissipation 40 Energy Generation 19 Energy Capacity 215 Matter Stores 100 Matter Capacity 100 Sight Range 16 Terrain Scan Density 10 Armor Coverage 150 Resistance: EX 50 Resistance: I 25 Resistance: S 25 Evasion (%) 62 Recoil Reduction 2 Item Schematics ----------------- None Robot Schematics ------------------ None Fabricated ------------ Nothing Alien Tech Used ----------------- None Achievements -------------- None Challenges ------------ None Polymind | -11 -10 -9 ---------- Run | Scr Mat Mat Hosts 10 | 1 2 7 Combat Hostiles 8 | . 2 6 Allies . | . . . Unique Host Classes 6 | 1 2 3 Average Host Suspicion 73 | . 85 72 Unsuspicious Activity 8759 | 2 234 8523 Returns to Shadow 6 | . . 6 Fuzzy Dispatches 4 | . . 4 Protomatter Created 285 | . 39 246 Used 166 | 5 21 140 Decayed 29 | . . 29 Highest Spend 30 | 5 15 30 Top 5 Hosts by Kills: Y-45 Defender (-9/Materials: 23) G-34 Mercenary (-10/Materials: 11) Y-45 Defender (-9/Materials: 11) G-47 Trooper (-9/Materials: 11) B-36 Bruiser (-9/Materials: 9) Game ------ Seed PhasingMeleeUnit Manual? 0 Play Time 00:36:30 Cumulative 305.6 hours Start 2023.02.12 @ 17:21:31 End 2023.02.12 @ 17:56:25 Sessions 1 Manual Loads 0 Difficulty Rogue Special Mode Winter2022/Polymind Game No. 361 Rogue 361 Adventurer 0 Explorer 0 Win Type - Total 0 Types 0/0/0/0/0/0/0/0/0 Lore% 45 Gallery% 72 Achievement% 59 Wizard Run 0 Options --------- ASCII 0 Keyboard 0 Movement Mouse Keybinds 0 Fullscreen 2 Font 24/Smallcaps Map View 76x50 Tactical HUD 1 Map Filters NONE Filters NONE Steam 1 RUN: b0b1e903-2417-4937-b49d-a2cc2b2f1f91